bitfinex/quotes_BTCUSD_20230115
["timestamp","ask_amount","ask_price","bid_price","bid_amount"]
[1673790181633,0.53649311,20781.0,20778.0,1.23218679]
[1673790181893,0.53649311,20781.0,20779.0,0.027603]
[1673790182155,0.36000878,20781.0,20780.0,1.283356]
[1673790182426,0.36000878,20781.0,20780.0,1.48258195]
[1673790182689,0.36000878,20781.0,20780.0,1.77311583]
[1673790183210,0.36000878,20781.0,20780.0,2.07311583]
[1673790183473,0.36000878,20781.0,20780.0,1.77311583]
[1673790183742,1.98600728,20791.0,20781.0,0.35999]
[1673790184018,1.98600728,20791.0,20782.0,1.38545998]
[1673790184302,1.80016489,20791.0,20783.0,2.91334664]
[1673790184567,1.80016489,20791.0,20784.0,1.67891516]
[1673790184833,1.65743491,20791.0,20785.0,1.08061123]
[1673790185103,1.65743491,20791.0,20786.0,0.89290332]
[1673790185373,1.65743491,20791.0,20787.0,0.40876169]
[1673790185632,1.65743491,20791.0,20788.0,0.620861]
[1673790185910,1.65743491,20791.0,20789.0,0.40889565]
[1673790186170,1.65743491,20791.0,20789.0,1.470542]
[1673790186705,1.89325837,20791.0,20789.0,1.470542]
[1673790187273,1.89325837,20791.0,20789.0,0.989519]
[1673790187274,1.65743491,20791.0,20789.0,0.989519]
[1673790187539,1.91882481,20790.0,20789.0,0.989519]
[1673790187837,1.71402791,20790.0,20789.0,0.989519]
[1673790188111,1.71402791,20790.0,20789.0,1.68333548]
[1673790188596,1.65743491,20791.0,20790.0,3.28597209]
[1673790188598,1.65743491,20791.0,20790.0,3.65000882]
[1673790188870,1.65743491,20791.0,20790.0,5.10121282]
[1673790189128,1.65743491,20791.0,20790.0,4.80121282]
[1673790189641,1.65743491,20791.0,20790.0,4.44683682]
[1673790191135,1.65743491,20791.0,20790.0,5.09681118]
[1673790191581,1.65743491,20791.0,20790.0,4.73277445]
[1673790191815,1.65743491,20791.0,20790.0,5.64965184]
[1673790192048,1.65743491,20791.0,20790.0,5.21377445]
[1673790192597,1.65743491,20791.0,20790.0,5.69097614]
[1673790193383,1.65743491,20791.0,20790.0,5.21377445]
[1673790193920,0.91806791,20791.0,20790.0,5.69097614]
[1673790194175,0.50484413,20791.0,20790.0,5.69097614]
[1673790194729,0.39393903,20791.0,20790.0,5.69097614]
[1673790195230,0.15184103,20791.0,20790.0,5.69097614]
[1673790195483,0.15184103,20791.0,20790.0,4.91377445]
[1673790195740,0.15184103,20791.0,20790.0,4.94093681]
[1673790197592,0.15184103,20791.0,20790.0,4.56380009]
[1673790197860,0.48006472,20791.0,20790.0,4.08280009]
[1673790198112,0.38470317,20791.0,20790.0,3.60180009]
[1673790198377,0.38470317,20791.0,20790.0,3.28097209]
[1673790198663,0.38470317,20791.0,20790.0,3.60189909]
[1673790199183,0.38470317,20791.0,20790.0,3.30834209]
[1673790199440,0.38470317,20791.0,20790.0,4.71772736]
[1673790199441,0.15184103,20791.0,20790.0,4.71772736]
[1673790199701,0.15184103,20791.0,20790.0,4.46106804]
[1673790199979,0.15184103,20791.0,20790.0,4.71805211]
[1673790200233,0.15184103,20791.0,20790.0,5.01805211]
[1673790201264,0.15184103,20791.0,20790.0,5.03832321]
[1673790201560,0.15184103,20791.0,20790.0,4.76429246]
[1673790202598,0.15184103,20791.0,20790.0,5.24529246]
[1673790204148,0.15184103,20791.0,20790.0,4.27034209]
[1673790204382,0.66661521,20791.0,20790.0,3.30834209]
[1673790204634,0.15184103,20791.0,20790.0,3.28097209]
[1673790204901,0.3608691,20791.0,20790.0,3.28097209]
[1673790205415,0.37600366,20791.0,20790.0,3.28097209]
[1673790205923,0.45184103,20791.0,20790.0,3.28097209]
[1673790206488,0.67995294,20791.0,20790.0,3.28097209]
[1673790206949,0.37995294,20791.0,20790.0,3.28097209]
[1673790209216,0.15184103,20791.0,20790.0,3.47169804]
[1673790209484,0.15184103,20791.0,20790.0,4.04516548]
[1673790209737,0.15184103,20791.0,20790.0,4.56389909]
[1673790210248,0.15184103,20791.0,20790.0,4.95986803]
[1673790211030,0.15184103,20791.0,20790.0,4.75462504]
[1673790211287,0.15184103,20791.0,20790.0,5.01160911]
[1673790212582,0.15184103,20791.0,20790.0,5.05905191]
[1673790214667,0.15184103,20791.0,20790.0,4.56389909]
[1673790215450,0.15184103,20791.0,20790.0,5.04489909]
[1673790215694,0.15184103,20791.0,20790.0,5.44380977]
[1673790216707,0.14684103,20791.0,20790.0,5.44380977]
[1673790217226,0.14684103,20791.0,20790.0,5.04489909]
[1673790217482,0.14684103,20791.0,20790.0,5.42518335]
[1673790218011,0.14684103,20791.0,20790.0,5.04489909]
[1673790218275,0.14684103,20791.0,20790.0,5.47351995]
[1673790218510,0.14684103,20791.0,20790.0,5.04489909]
[1673790218760,0.14684103,20791.0,20790.0,5.50232411]
[1673790223053,0.14684103,20791.0,20790.0,5.04489909]
[1673790223827,0.14684103,20791.0,20790.0,5.79260911]
[1673790224583,0.24220258,20791.0,20790.0,5.42827735]
[1673790224839,0.14684103,20791.0,20790.0,5.42827735]
[1673790226159,0.14584103,20791.0,20790.0,5.42827735]
[1673790228418,0.14584103,20791.0,20790.0,5.04489909]
[1673790229194,0.14584103,20791.0,20790.0,4.56389909]
[1673790229447,0.35940832,20791.0,20790.0,4.56389909]
[1673790230764,0.42587545,20791.0,20790.0,3.28097209]
[1673790231011,0.31784906,20791.0,20790.0,3.28097209]
[1673790231808,0.24120258,20791.0,20790.0,3.28097209]
[1673790232073,0.92681803,20791.0,20790.0,3.28097209]
[1673790232325,1.2933128,20791.0,20790.0,3.28097209]
[1673790232584,1.32394669,20791.0,20790.0,3.28197209]
[1673790232841,0.54296969,20791.0,20790.0,3.47669804]
[1673790233131,0.35650769,20791.0,20790.0,3.28597209]
[1673790233413,0.14584103,20791.0,20790.0,3.76697209]
[1673790233720,1.10806922,20791.0,20790.0,4.08789909]
[1673790233880,1.10806922,20791.0,20790.0,4.73145944]
[1673790234381,1.10806922,20791.0,20790.0,5.05238644]
[1673790240138,1.29245153,20791.0,20790.0,4.56889909]
[1673790240321,1.38781308,20791.0,20790.0,3.28597209]
[1673790240586,1.1466105,20791.0,20790.0,3.28597209]
[1673790242106,0.96222819,20791.0,20790.0,3.28597209]
[1673790242374,0.96222819,20791.0,20790.0,3.47669804]
[1673790242631,0.96222819,20791.0,20790.0,4.73801058]
[1673790242887,0.96222819,20791.0,20790.0,5.05893758]
[1673790243163,0.91222819,20791.0,20790.0,5.05893758]
[1673790245052,0.17893488,20793.0,20790.0,5.05893758]
[1673790245559,0.5034,20795.0,20791.0,0.027368]
[1673790245562,0.72442224,20795.0,20791.0,0.027368]
[1673790245818,0.22102224,20795.0,20792.0,1.15262395]
[1673790246084,0.22205716,20797.0,20793.0,0.19072595]
[1673790246357,0.21397513,20795.0,20791.0,0.81103574]
[1673790246666,0.22844627,20794.0,20793.0,0.480917]
[1673790246922,0.22844627,20794.0,20792.0,0.480949]
[1673790247189,0.22844627,20794.0,20792.0,0.961889]
[1673790248522,0.22844627,20794.0,20792.0,0.480949]
[1673790249339,0.32380782,20794.0,20791.0,0.480972]
[1673790249594,0.26477622,20793.0,20790.0,3.81542577]
[1673790249857,0.36013777,20793.0,20790.0,3.7628239]
[1673790250109,0.74571122,20793.0,20790.0,3.7628239]
[1673790250698,0.84657466,20792.0,20790.0,3.33442877]
[1673790250952,0.26477891,20791.0,20790.0,3.33442877]
[1673790251218,0.26477891,20791.0,20790.0,2.3385915]
[1673790251219,1.5615247,20791.0,20790.0,2.3385915]
[1673790251483,1.5615247,20791.0,20786.0,0.39070797]
[1673790251484,1.9156366,20791.0,20787.0,0.04803206]
[1673790251770,0.1,20790.0,20787.0,0.04803206]
[1673790252045,1.148508,20789.0,20787.0,0.04803206]
[1673790252307,1.05740755,20789.0,20787.0,0.04803206]
[1673790252564,1.05740755,20789.0,20781.0,0.63703355]
[1673790252565,0.186462,20788.0,20783.0,0.45342445]
[1673790252822,0.09536155,20787.0,20783.0,0.45342445]
[1673790253199,0.09536155,20786.0,20783.0,0.45342445]
[1673790253202,0.57644255,20787.0,20784.0,0.48548625]
[1673790253523,0.23588792,20785.0,20782.0,0.40475168]
[1673790253775,0.33124947,20785.0,20782.0,0.40475168]
[1673790254291,0.33124947,20785.0,20783.0,0.320927]
[1673790254292,0.23588792,20785.0,20783.0,0.320927]
[1673790254555,0.30758481,20785.0,20782.0,0.40475168]
[1673790254807,0.23588792,20785.0,20782.0,0.40475168]
[1673790255302,0.33124947,20785.0,20781.0,0.68564813]
[1673790255566,1.29078365,20785.0,20781.0,1.10922721]
[1673790255858,0.23429259,20784.0,20781.0,1.10922721]
[1673790256076,0.23429259,20784.0,20782.0,0.50009817]
[1673790256600,0.23429259,20784.0,20783.0,0.320927]
[1673790256848,0.23429259,20784.0,20782.0,0.50009817]
[1673790257605,0.65185727,20787.0,20782.0,0.98127617]
[1673790257882,0.65185727,20787.0,20783.0,0.51165295]
[1673790257883,0.18950112,20786.0,20783.0,0.51165295]
[1673790258129,0.18450112,20786.0,20783.0,0.19072595]
[1673790258370,0.18450112,20786.0,20783.0,0.481162]
[1673790258622,0.18450112,20786.0,20784.0,0.41842371]
[1673790259866,0.66559912,20786.0,20782.0,0.481165]
[1673790260114,0.92638748,20786.0,20782.0,0.89333948]
[1673790260603,0.76096067,20786.0,20782.0,0.89333948]
[1673790261117,0.22659847,20785.0,20782.0,0.89333948]
[1673790261400,0.32196002,20785.0,20781.0,1.16683613]
[1673790261634,0.32196002,20785.0,20781.0,0.68564813]
[1673790261635,0.3,20784.0,20781.0,0.68564813]
[1673790261888,1.35765755,20784.0,20781.0,0.68564813]
[1673790262146,1.262296,20784.0,20781.0,0.68564813]
[1673790262376,0.962296,20784.0,20781.0,0.68564813]
[1673790262885,1.2165738,20784.0,20781.0,0.68564813]
[1673790263162,0.3,20783.0,20781.0,0.68564813]
[1673790263642,0.21678792,20782.0,20781.0,0.63703355]
[1673790264697,0.481155,20784.0,20781.0,0.63703355]
[1673790264926,0.6621987,20784.0,20781.0,0.8277595]
[1673790265167,0.1810437,20784.0,20781.0,0.63703355]
[1673790265917,0.23057704,20783.0,20781.0,0.63703355]
[1673790266162,0.962253,20785.0,20781.0,0.63703355]
[1673790266163,0.19897829,20782.0,20781.0,0.63703355]
[1673790266905,0.38544029,20782.0,20781.0,0.63703355]
[1673790267148,0.19897829,20782.0,20781.0,0.63703355]
[1673790267420,0.7070396,20784.0,20781.0,0.63703355]
[1673790267673,0.781182,20783.0,20781.0,0.63703355]
[1673790267940,0.32475636,20782.0,20781.0,0.63703355]
[1673790268194,1.148832,20782.0,20781.0,0.63703355]
[1673790268435,1.448832,20782.0,20781.0,0.63703355]
[1673790268688,1.6628154,20782.0,20781.0,0.63703355]
[1673790272124,1.448832,20782.0,20781.0,0.63703355]
[1673790272391,1.448832,20782.0,20781.0,0.63163813]
[1673790272392,1.92603369,20782.0,20781.0,0.63163813]
[1673790272648,2.16967309,20782.0,20781.0,0.63163813]
[1673790272906,2.1410937,20782.0,20781.0,0.63163813]
[1673790273148,3.26699979,20782.0,20781.0,0.63163813]
[1673790273397,3.26699979,20782.0,20780.0,0.63174572]
[1673790273398,0.20658,20781.0,20780.0,0.63174572]
[1673790273646,2.62465404,20781.0,20780.0,0.63174572]
[1673790273891,3.27721903,20781.0,20780.0,0.63174572]
[1673790274146,3.91357272,20781.0,20780.0,0.63174572]
[1673790274385,3.62670037,20781.0,20780.0,0.63174572]
[1673790274627,3.88186437,20781.0,20780.0,0.63174572]
[1673790274871,3.38063041,20781.0,20780.0,0.63174572]
[1673790275171,2.08643181,20781.0,20780.0,0.63174572]
[1673790276661,2.38643181,20781.0,20780.0,0.63174572]
[1673790277175,2.17586092,20781.0,20780.0,0.63174572]
[1673790277421,2.55836298,20781.0,20780.0,0.63174572]
[1673790277686,2.80970024,20781.0,20780.0,0.63174572]
[1673790277931,2.7381,20781.0,20780.0,0.63174572]
[1673790278511,3.44405614,20781.0,20780.0,0.63174572]
[1673790279206,0.1,20780.0,20779.0,0.63232341]
[1673790279456,2.72283361,20780.0,20779.0,0.63232341]
[1673790279698,2.40685392,20780.0,20779.0,0.63232341]
[1673790279951,2.75129044,20780.0,20779.0,0.63232341]
[1673790280192,3.00284345,20780.0,20779.0,0.63232341]
[1673790280434,2.54083362,20780.0,20779.0,0.63232341]
[1673790280684,2.58285538,20780.0,20779.0,0.63232341]
[1673790280932,1.47145245,20780.0,20779.0,0.63232341]
[1673790281176,1.20503097,20780.0,20779.0,0.63232341]
[1673790281421,0.99022145,20780.0,20779.0,0.63232341]
[1673790281661,1.65128397,20780.0,20779.0,0.63232341]
[1673790281909,0.71619568,20781.0,20779.0,0.82304936]
[1673790282155,0.71619568,20781.0,20779.0,1.78555936]
[1673790282400,0.71619568,20781.0,20780.0,0.420927]
[1673790282652,0.71619568,20781.0,20780.0,0.320927]
[1673790282918,0.71619568,20781.0,20779.0,1.96262226]
[1673790282919,0.78781525,20781.0,20779.0,1.00011226]
[1673790283154,1.03299259,20781.0,20779.0,1.00011226]
[1673790283397,0.8897733,20781.0,20779.0,1.00011226]
[1673790284162,1.03299139,20781.0,20779.0,1.00011226]
[1673790284400,1.03299139,20781.0,20780.0,0.6448379]
[1673790284401,0.71619568,20781.0,20780.0,0.6448379]
[1673790284657,0.71619568,20781.0,20780.0,0.87062572]
[1673790284902,0.71619568,20781.0,20780.0,1.19155272]
[1673790285165,0.71619568,20781.0,20780.0,1.67278372]
[1673790285897,0.71619568,20781.0,20780.0,1.35185672]
[1673790288372,0.85974584,20781.0,20780.0,1.35185672]
[1673790288625,1.58203686,20781.0,20779.0,0.63232341]
[1673790288874,1.54333142,20780.0,20779.0,0.63232341]
[1673790289129,1.25616256,20780.0,20779.0,0.63232341]
[1673790289368,1.8381138,20780.0,20779.0,0.63232341]
[1673790289637,1.83275511,20780.0,20779.0,0.63232341]
[1673790289886,2.68522234,20780.0,20779.0,0.63232341]
[1673790290130,1.97439717,20780.0,20779.0,0.63232341]
[1673790292229,1.367053,20780.0,20779.0,0.63232341]
[1673790292489,1.180591,20780.0,20779.0,0.63232341]
[1673790292733,1.367053,20780.0,20779.0,0.63232341]
[1673790292983,0.404591,20780.0,20779.0,0.63232341]
[1673790293767,0.885822,20780.0,20779.0,0.63232341]
[1673790294012,1.185822,20780.0,20779.0,0.63232341]
[1673790294260,1.667053,20780.0,20779.0,0.63232341]
[1673790295279,2.0206543,20780.0,20779.0,0.63232341]
[1673790295524,1.367053,20780.0,20779.0,0.63232341]
[1673790295762,1.180591,20780.0,20779.0,0.63232341]
[1673790296012,1.367053,20780.0,20779.0,0.63232341]
[1673790296254,1.58026086,20780.0,20779.0,0.63232341]
[1673790296540,2.50438809,20780.0,20779.0,0.63232341]
[1673790296779,2.98201781,20780.0,20779.0,0.63232341]
[1673790297022,2.75672973,20780.0,20779.0,0.63232341]
[1673790297277,2.41180763,20780.0,20779.0,0.63232341]
[1673790297526,2.88900932,20780.0,20779.0,0.63232341]
[1673790298013,3.37451915,20780.0,20779.0,0.63232341]
[1673790298260,4.36588941,20780.0,20779.0,0.63232341]
[1673790298509,3.88037958,20780.0,20779.0,0.63232341]
[1673790298759,4.36605199,20780.0,20779.0,0.63232341]
[1673790299015,4.8374245,20780.0,20779.0,0.63232341]
[1673790299252,4.36025209,20780.0,20779.0,0.63232341]
[1673790299495,3.36888183,20780.0,20779.0,0.63232341]
[1673790300251,4.36062967,20780.0,20779.0,0.63232341]
[1673790300496,4.56159461,20780.0,20779.0,0.63232341]
[1673790300749,4.36062967,20780.0,20779.0,0.63232341]
[1673790300992,4.56856704,20780.0,20779.0,0.63232341]
[1673790301269,4.36012067,20780.0,20779.0,0.63232341]
[1673790302254,3.36837283,20780.0,20779.0,0.63232341]
[1673790302742,4.36190631,20780.0,20779.0,0.63232341]
[1673790303229,4.55562841,20780.0,20779.0,0.63232341]
[1673790303480,4.53499536,20780.0,20779.0,0.63232341]
[1673790304241,3.30329662,20780.0,20779.0,0.63232341]
[1673790304493,3.06837283,20780.0,20779.0,0.63232341]
[1673790305238,4.06199739,20780.0,20779.0,0.63232341]
[1673790305481,4.2517154,20780.0,20779.0,0.63232341]
[1673790305730,3.39911376,20780.0,20779.0,0.63232341]
[1673790305969,2.60379368,20780.0,20779.0,0.63232341]
[1673790306436,0.186462,20780.0,20779.0,1.18033429]
[1673790306702,0.43183323,20780.0,20779.0,0.98960834]
[1673790306965,0.186462,20780.0,20779.0,0.98960834]
[1673790307222,1.36297334,20781.0,20779.0,0.98960834]
[1673790307486,0.64769996,20780.0,20779.0,0.98960834]
[1673790307751,3.05523986,20780.0,20779.0,0.98960834]
[1673790308009,3.24170186,20780.0,20779.0,0.98960834]
[1673790308262,3.05523986,20780.0,20779.0,0.98960834]
[1673790308518,3.24170186,20780.0,20779.0,0.98960834]
[1673790308776,3.05523986,20780.0,20779.0,0.98960834]
[1673790309480,3.03146908,20780.0,20779.0,0.98960834]
[1673790309744,3.21793108,20780.0,20779.0,0.98960834]
[1673790309997,3.03146908,20780.0,20779.0,0.98960834]
[1673790310252,3.21793108,20780.0,20779.0,0.98960834]
[1673790310515,3.03146908,20780.0,20779.0,0.98960834]
[1673790310768,3.21793108,20780.0,20779.0,0.98960834]
[1673790311025,3.03146908,20780.0,20779.0,0.98960834]
[1673790311287,2.5940019,20780.0,20779.0,0.98960834]
[1673790311530,2.4075399,20780.0,20779.0,1.47086334]
[1673790312348,3.10639046,20780.0,20779.0,0.63232341]
[1673790312607,3.29285246,20780.0,20779.0,0.63232341]
[1673790312858,3.88762146,20780.0,20779.0,0.63232341]
[1673790313119,4.07408346,20780.0,20779.0,0.63232341]
[1673790313375,3.89594846,20780.0,20779.0,0.63232341]
[1673790313647,3.59594846,20780.0,20779.0,0.63232341]
[1673790313936,3.28582856,20780.0,20779.0,0.63232341]
[1673790314143,2.5092746,20780.0,20779.0,0.63232341]
[1673790315411,1.81042404,20780.0,20779.0,0.63232341]
[1673790315666,0.35962236,20780.0,20779.0,1.27960983]
[1673790315917,0.9311543,20781.0,20779.0,1.57013888]
[1673790316189,0.91576103,20781.0,20779.0,1.30430436]
[1673790316508,0.91576103,20781.0,20780.0,0.75709555]
[1673790316705,0.9034477,20781.0,20780.0,1.23832655]
[1673790316953,0.67798358,20781.0,20780.0,1.23832655]
[1673790317204,0.65532475,20781.0,20780.0,1.33832655]
[1673790317469,0.5672673,20781.0,20780.0,0.802158]
[1673790317721,0.5672673,20781.0,20780.0,1.22061726]
[1673790317964,0.5672673,20781.0,20780.0,1.70184826]
[1673790318734,0.5672673,20781.0,20780.0,1.22061726]
[1673790318986,0.92700706,20781.0,20780.0,0.89969026]
[1673790319249,1.07090431,20781.0,20780.0,0.89969026]
[1673790319508,0.5672673,20781.0,20780.0,0.89969026]
[1673790319770,0.5672673,20781.0,20780.0,1.22061726]
[1673790320292,0.78310743,20781.0,20780.0,0.89969026]
[1673790320776,0.5672673,20781.0,20780.0,0.89969026]
[1673790322294,0.78310743,20781.0,20780.0,0.89969026]
[1673790322555,1.07090652,20781.0,20780.0,0.41845926]
[1673790322855,0.78310743,20781.0,20780.0,0.41845926]
[1673790323315,0.71116122,20781.0,20780.0,0.41845926]
[1673790323564,0.5672673,20781.0,20780.0,1.38092126]
[1673790323847,0.5672673,20781.0,20780.0,1.70184826]
[1673790324870,0.5672673,20781.0,20780.0,1.38092126]
[1673790326180,0.5672673,20781.0,20780.0,1.70184826]
[1673790327240,0.5672673,20781.0,20780.0,1.283389]
[1673790327487,0.42048195,20781.0,20780.0,1.68440319]
[1673790327774,0.42048195,20781.0,20780.0,1.283389]
[1673790328039,0.41892949,20781.0,20780.0,1.383389]
[1673790328290,0.41892949,20781.0,20780.0,1.83734208]
[1673790328799,0.41892949,20781.0,20780.0,1.283389]
[1673790329568,0.41892949,20781.0,20780.0,1.81589882]
[1673790329569,0.28910154,20781.0,20780.0,1.81589882]
[1673790329829,0.28910154,20781.0,20780.0,1.77013521]
[1673790330088,0.28910154,20781.0,20780.0,1.283389]
[1673790331145,0.28910154,20781.0,20780.0,0.35691944]
[1673790331674,0.25847631,20781.0,20780.0,0.35691944]
[1673790331983,0.25847631,20781.0,20780.0,0.83815044]
[1673790332248,0.14374526,20783.0,20781.0,0.1]
[1673790332519,0.35933571,20784.0,20781.0,1.75104734]
[1673790332784,2.32421851,20785.0,20781.0,1.15311995]
[1673790332785,0.98208288,20785.0,20781.0,1.15311995]
[1673790333056,0.98208288,20785.0,20781.0,1.62280835]
[1673790333324,0.14373183,20784.0,20781.0,1.62280835]
[1673790333575,0.14373183,20784.0,20781.0,1.4320824]
[1673790333826,0.14373183,20784.0,20782.0,0.320927]
[1673790334088,0.14373183,20784.0,20782.0,0.481181]
[1673790334350,0.14373183,20784.0,20782.0,0.160254]
[1673790334610,0.14373183,20784.0,20783.0,0.42788375]
[1673790334844,1.48510012,20785.0,20783.0,0.42788375]
[1673790334845,0.98208288,20785.0,20783.0,0.42788375]
[1673790336126,1.26948926,20785.0,20783.0,0.42788375]
[1673790336376,0.98208288,20785.0,20783.0,0.42788375]
[1673790336641,1.26948926,20785.0,20783.0,0.42788375]
[1673790336935,1.12576787,20785.0,20783.0,0.42788375]
[1673790337435,0.92761037,20785.0,20783.0,0.42788375]
[1673790337690,0.14368509,20784.0,20783.0,0.42788375]
[1673790337925,0.92761047,20785.0,20783.0,0.42788375]
[1673790338194,0.78392538,20785.0,20783.0,0.42788375]
[1673790338447,0.14368601,20784.0,20783.0,0.42788375]
[1673790339207,0.14368601,20784.0,20783.0,0.90904575]
[1673790339485,0.92761139,20785.0,20783.0,0.90904575]
[1673790340515,0.143765,20784.0,20783.0,0.90904575]
[1673790340785,0.143765,20784.0,20783.0,0.481162]
[1673790341048,0.143765,20784.0,20783.0,0.91939562]
[1673790341315,0.92769038,20785.0,20784.0,0.44608799]
[1673790341561,0.78392538,20785.0,20784.0,1.64408414]
[1673790342386,0.78392538,20785.0,20784.0,1.32315714]
[1673790342838,0.78392538,20785.0,20784.0,1.64408414]
[1673790343923,0.78392538,20785.0,20784.0,1.32315714]
[1673790344191,1.99178975,20785.0,20783.0,0.46726986]
[1673790344490,1.99178975,20785.0,20781.0,0.481191]
[1673790344491,0.48027717,20783.0,20780.0,0.57297091]
[1673790344747,0.09536155,20783.0,20780.0,1.05418591]
[1673790345041,0.09536155,20783.0,20781.0,0.78060401]
[1673790345291,1.95579027,20785.0,20782.0,0.027544]
[1673790345571,1.906081,20785.0,20783.0,0.320895]
[1673790345817,1.61847561,20785.0,20781.0,0.94011618]
[1673790346104,0.14380134,20783.0,20781.0,0.45890818]
[1673790346376,0.35966557,20783.0,20781.0,0.94011518]
[1673790346886,0.44407949,20784.0,20781.0,0.94011518]
[1673790347165,0.14391886,20783.0,20782.0,0.320927]
[1673790347435,0.52140203,20783.0,20781.0,0.94011518]
[1673790347730,0.14391841,20782.0,20781.0,0.45890818]
[1673790347971,0.61277381,20782.0,20780.0,0.57296791]
[1673790348218,0.82867427,20782.0,20780.0,0.89333696]
[1673790348721,0.82867427,20782.0,20780.0,0.41212496]
[1673790348722,0.14391841,20781.0,20780.0,0.41212496]
[1673790349019,0.82867427,20782.0,20780.0,0.41212496]
[1673790349241,0.4688554,20782.0,20780.0,0.41212496]
[1673790349499,0.4688554,20782.0,20781.0,0.320908]
[1673790349753,0.4688554,20782.0,20780.0,0.41212496]
[1673790350050,0.68476868,20782.0,20780.0,0.41212496]
[1673790351567,0.68476868,20782.0,20780.0,0.89335496]
[1673790352137,0.88547069,20782.0,20780.0,0.89335496]
[1673790352392,0.60245119,20781.0,20779.0,0.52291988]
[1673790352668,0.98081374,20781.0,20779.0,0.52291988]
[1673790353018,1.6799209,20780.0,20779.0,0.52291988]
[1673790353511,1.4816999,20780.0,20779.0,0.52291988]
[1673790353760,1.80108996,20780.0,20779.0,0.52291988]
[1673790354042,2.58232096,20780.0,20779.0,0.52291988]
[1673790354298,2.62898486,20780.0,20779.0,0.52291988]
[1673790354546,2.72361943,20780.0,20779.0,0.52291988]
[1673790354804,2.4296227,20780.0,20779.0,0.52291988]
[1673790355047,2.43459413,20780.0,20779.0,0.52291988]
[1673790355300,2.3028301,20780.0,20779.0,0.52291988]
[1673790357072,2.3028301,20780.0,20779.0,0.55269451]
[1673790357073,2.78868604,20780.0,20779.0,0.55269451]
[1673790357346,3.75156912,20780.0,20779.0,0.55269451]
[1673790357886,3.26571318,20780.0,20779.0,0.55269451]
[1673790358611,3.75122005,20780.0,20779.0,0.55269451]
[1673790360457,3.75122005,20780.0,20779.0,0.31325261]
[1673790360458,2.88369852,20780.0,20779.0,0.31325261]
[1673790360748,3.1857643,20780.0,20779.0,0.31325261]
[1673790360948,3.1857643,20780.0,20779.0,0.04984261]
[1673790361224,0.21849,20779.0,20778.0,1.2905764]
[1673790361477,2.44080386,20779.0,20778.0,1.2905764]
[1673790361746,3.39844252,20779.0,20778.0,1.2905764]
[1673790362245,4.39393332,20779.0,20778.0,1.2905764]
[1673790362501,4.39393332,20779.0,20778.0,1.0483274]
[1673790362752,0.21849,20778.0,20777.0,0.90966438]
[1673790363005,3.15193773,20778.0,20777.0,0.90966438]
[1673790363310,4.39403936,20778.0,20777.0,0.90966438]
[1673790363527,0.21849,20777.0,20776.0,0.48133007]
[1673790363769,3.65923218,20777.0,20776.0,0.48133007]
[1673790364028,3.9381488,20777.0,20776.0,0.48133007]
[1673790364286,0.21849,20776.0,20775.0,0.00608375]
[1673790364539,0.1,20775.0,20771.0,0.84213767]
[1673790364814,0.5104248,20772.0,20771.0,0.84213767]
[1673790365069,3.73667871,20772.0,20771.0,0.84213767]
[1673790365330,4.06226589,20772.0,20771.0,0.84213767]
[1673790365601,4.38937181,20772.0,20771.0,0.84213767]
[1673790365849,4.29401026,20772.0,20771.0,0.84213767]
[1673790366091,3.21296215,20772.0,20771.0,0.84213767]
[1673790366343,3.21296215,20772.0,20771.0,1.03286362]
[1673790366588,4.17503653,20772.0,20771.0,0.84213767]
[1673790366842,3.18772215,20772.0,20771.0,0.84213767]
[1673790367092,3.62791312,20772.0,20771.0,0.84213767]
[1673790367620,3.85420861,20772.0,20771.0,0.84213767]
[1673790367874,4.56178114,20772.0,20771.0,0.84213767]
[1673790368138,5.0004891,20772.0,20771.0,0.84213767]
[1673790368482,5.09585065,20772.0,20771.0,0.84213767]
[1673790368634,5.09585065,20772.0,20771.0,0.02262167]
[1673790368635,5.53825395,20772.0,20771.0,0.02262167]
[1673790368883,0.21849,20771.0,20769.0,1.73740722]
[1673790369140,4.58866819,20771.0,20769.0,1.73740722]
[1673790369413,4.8352153,20771.0,20769.0,1.73740722]
[1673790369917,5.03724221,20771.0,20770.0,0.25536631]
[1673790370169,5.03724221,20771.0,20769.0,1.73740722]
[1673790370438,3.0525381,20770.0,20769.0,0.9124271]
[1673790370692,3.0525381,20770.0,20769.0,0.81450305]
[1673790370693,4.21294322,20770.0,20769.0,0.81450305]
[1673790370950,4.21294322,20770.0,20769.0,0.6237771]
[1673790370951,3.77926784,20770.0,20769.0,0.6237771]
[1673790371466,0.47720169,20768.0,20767.0,2.06094106]
[1673790371709,3.35851018,20768.0,20767.0,2.06094106]
[1673790371964,2.8938423,20768.0,20767.0,2.05487923]
[1673790372219,3.9433748,20768.0,20767.0,2.05487923]
[1673790372468,4.54328104,20768.0,20767.0,1.80571723]
[1673790372731,0.47720169,20763.0,20762.0,0.00810195]
[1673790372989,2.82823392,20757.0,20752.0,1.62198513]
[1673790373240,0.31882255,20756.0,20752.0,1.178663]
[1673790373481,0.02735,20753.0,20751.0,0.37292829]
[1673790373733,0.9799219,20755.0,20751.0,0.37292829]
[1673790373734,1.00520856,20752.0,20751.0,0.37292829]
[1673790374001,0.99666438,20752.0,20751.0,0.44734747]
[1673790374260,1.02401438,20752.0,20750.0,0.000744]
[1673790374511,1.21693338,20751.0,20750.0,0.000744]
[1673790374829,1.21693338,20751.0,20747.0,0.47829954]
[1673790374830,1.83024595,20751.0,20747.0,0.47829954]
[1673790375054,0.56705453,20751.0,20750.0,0.481927]
[1673790375312,0.48023716,20751.0,20750.0,0.481927]
[1673790375567,0.48023716,20751.0,20749.0,0.48193]
[1673790375829,0.198221,20750.0,20748.0,0.43440634]
[1673790376105,0.48020305,20749.0,20746.0,0.48201]
[1673790376326,1.13862839,20748.0,20747.0,0.83677428]
[1673790376825,0.83030331,20748.0,20747.0,0.83677428]
[1673790377079,1.18636993,20746.0,20745.0,0.482035]
[1673790377325,1.68363777,20746.0,20745.0,0.964078]
[1673790377576,2.3402396,20746.0,20745.0,0.964078]
[1673790377837,1.89823092,20746.0,20745.0,0.964078]
[1673790378346,2.2534044,20746.0,20745.0,1.35833034]
[1673790378633,1.4701547,20746.0,20745.0,0.964078]
[1673790378867,2.62378355,20746.0,20745.0,0.482043]
[1673790379115,2.62378355,20746.0,20741.0,0.7206]
[1673790379116,3.14301072,20746.0,20741.0,0.7206]
[1673790379366,3.14301072,20746.0,20739.0,1.00083895]
[1673790379367,1.14546366,20743.0,20739.0,0.45294229]
[1673790379618,0.3548538,20740.0,20735.0,0.88221528]
[1673790379877,0.44165576,20739.0,20735.0,0.23529202]
[1673790380125,0.08681737,20739.0,20738.0,0.964412]
[1673790380383,0.14193531,20742.0,20738.0,1.28532]
[1673790380638,0.14193531,20741.0,20739.0,0.016633]
[1673790380934,0.14193531,20741.0,20736.0,0.70898]
[1673790380935,0.49675986,20740.0,20736.0,1.01799238]
[1673790381231,0.08681737,20739.0,20736.0,0.48225]
[1673790381434,0.46897741,20739.0,20736.0,0.05823127]
[1673790381682,0.46897741,20739.0,20737.0,0.05590203]